bitfinex/quotes_SOLUSD_20250718
["timestamp","ask_amount","ask_price","bid_price","bid_amount"]
[1752865940623,18.14968961,176.9,176.85,11.79677837]
[1752865940823,18.14968961,176.9,176.83,6.32497187]
[1752865940824,0.7,176.9,176.87,11.79677837]
[1752865941042,11.79677837,176.9,176.85,11.79677837]
[1752865941213,0.7,176.9,176.85,11.79677837]
[1752865941410,2.88782823,176.9,176.86,11.79677837]
[1752865941747,12.14255299,176.91,176.87,11.79677837]
[1752865941908,23.93933136,176.91,176.85,0.67]
[1752865942112,0.7,176.9,176.86,11.79677837]
[1752865942412,5.65323082,176.89,176.86,11.79677837]
[1752865942736,6.4899,176.91,176.87,11.79677837]
[1752865942924,43.09677837,176.93,176.88,11.79677837]
[1752865943125,0.7,176.92,176.88,11.79677837]
[1752865944054,12.49677837,176.91,176.84,6.3248255]
[1752865944341,15.35745767,176.91,176.86,11.79677837]
[1752865944719,12.49677837,176.91,176.86,11.79677837]
[1752865944919,0.7,176.91,176.86,11.79677837]
[1752865945219,5.65291124,176.9,176.87,11.79677837]
[1752865945624,58.7810675,176.94,176.89,11.79677837]
[1752865945952,5.65195274,176.93,176.9,11.79677837]
[1752865946134,5.65195274,176.93,176.89,11.79677837]
[1752865946326,6.3516831,176.94,176.9,11.79677837]
[1752865946543,18.14846147,176.94,176.89,12.46677837]
[1752865947343,6.1624,176.96,176.92,11.79677837]
[1752865947519,5.71075318,176.97,176.94,11.79677837]
[1752865947717,5.71075318,176.97,176.93,11.79677837]
[1752865948516,5.71075318,176.97,176.94,11.79677837]
[1752865948721,0.06,176.97,176.96,11.79677837]
[1752865949154,0.06,176.97,176.96,12.46677837]
[1752865949350,0.06,176.97,176.95,11.79677837]
[1752865949852,0.06,176.97,176.96,11.79677837]
[1752865950030,0.06,176.97,176.96,12.46677837]
[1752865950731,12.55677837,176.97,176.9,26.0]
[1752865950952,11.79677837,176.94,176.9,11.79677837]
[1752865951143,0.7,176.94,176.9,11.79677837]
[1752865951350,0.06,176.97,176.93,11.79677837]
[1752865951351,89.7,176.96,176.93,11.79677837]
[1752865951547,89.7,176.96,176.94,11.79677837]
[1752865952076,89.7,176.96,176.95,11.79677837]
[1752865952446,5.65131393,176.95,176.88,31.28]
[1752865952757,18.1480923,176.95,176.9,11.79677837]
[1752865952960,89.7,176.96,176.91,0.67]
[1752865952961,95.35110506,176.96,176.91,0.67]
[1752865953154,95.35110506,176.96,176.93,11.79677837]
[1752865953357,89.7,176.96,176.93,11.79677837]
[1752865953561,89.7,176.96,176.95,11.79677837]
[1752865954746,89.7,176.96,176.94,11.79677837]
[1752865954945,89.7,176.96,176.95,11.79677837]
[1752865955576,89.7,176.96,176.93,31.95]
[1752865955765,89.7,176.96,176.94,11.79677837]
[1752865956351,89.7,176.96,176.95,11.79677837]
[1752865956977,89.7,176.96,176.95,12.46677837]
[1752865957479,0.06,176.97,176.95,18.11798641]
[1752865957793,0.06,176.97,176.96,55.25146234]
[1752865958158,0.06,176.98,176.96,55.25146234]
[1752865958159,0.06,176.98,176.97,16.78468397]
[1752865958364,0.06,176.98,176.97,29.25146234]
[1752865958799,0.06,176.98,176.97,34.90213759]
[1752865959971,0.06,177.02,176.97,60.82560409]
[1752865960186,0.06,177.02,177.01,11.79677837]
[1752865960795,0.06,177.02,177.01,12.46677837]
[1752865960998,0.06,177.02,177.01,26.67]
[1752865961173,0.06,177.02,177.01,38.46677837]
[1752865961685,0.06,177.02,177.01,55.25146234]
[1752865962189,0.06,177.02,177.01,60.90086067]
[1752865963902,0.06,177.02,177.01,92.16086067]
[1752865965280,89.7,177.1,177.05,26.0]
[1752865965474,90.6,177.12,177.09,11.79677837]
[1752865965694,90.6,177.12,177.11,11.79677837]
[1752865966281,0.2,177.12,177.11,11.79677837]
[1752865968097,0.2,177.12,177.11,12.49677837]
[1752865968272,0.2,177.12,177.11,11.79677837]
[1752865968471,0.2,177.12,177.11,17.44298694]
[1752865968797,0.2,177.12,177.11,34.92767091]
[1752865971072,0.2,177.12,177.11,23.13089254]
[1752865971274,0.2,177.12,177.11,34.92767091]
[1752865971804,0.2,177.12,177.11,65.46767091]
[1752865972100,0.2,177.12,177.11,66.16767091]
[1752865972905,0.2,177.12,177.1,31.64646806]
[1752865973088,0.2,177.12,177.11,43.01677837]
[1752865973814,0.2,177.12,177.11,11.79677837]
[1752865974016,0.2,177.12,177.11,43.01677837]
[1752865974700,0.2,177.12,177.11,60.50146234]
[1752865975096,0.2,177.12,177.11,66.14767091]
[1752865976002,0.2,177.15,177.14,42.78468397]
[1752865976203,0.2,177.15,177.14,26.0]
[1752865976417,17.64171204,177.15,177.12,31.22]
[1752865976587,11.79677837,177.13,177.11,31.22]
[1752865976793,0.71,177.12,177.11,31.22]
[1752865977004,5.64620857,177.11,177.09,31.22]
[1752865977217,0.71,177.1,177.09,31.22]
[1752865977990,5.64620857,177.11,177.09,31.22]
[1752865978194,6.35620857,177.11,177.09,31.22]
[1752865978806,0.71,177.11,177.09,31.22]
[1752865979415,5.64562106,177.13,177.1,11.79677837]
[1752865979724,5.64562106,177.13,177.03,30.90623434]
[1752865979725,12.50677837,177.12,177.06,26.7]
[1752865979936,11.79677837,177.09,177.04,11.79677837]
[1752865980088,11.79677837,177.07,177.06,31.2]
[1752865980288,0.71,177.07,177.06,31.2]
[1752865980957,0.71,177.1,177.06,31.2]
[1752865981138,11.79677837,177.11,177.06,42.99677837]
[1752865981315,0.71,177.09,177.07,11.79677837]
[1752865981718,0.71,177.12,177.08,11.79677837]
[1752865981928,11.69210708,177.14,177.11,11.79677837]
[1752865982130,6.0466,177.14,177.13,11.79677837]
[1752865982333,0.2,177.15,177.13,42.99677837]
[1752865982648,0.71,177.14,177.13,31.2]
[1752865982847,0.71,177.14,177.13,42.99677837]
[1752865983439,6.35525234,177.14,177.13,42.99677837]
[1752865983651,6.35525234,177.14,177.1,26.0]
[1752865983941,6.35525234,177.14,177.11,42.99677837]
[1752865983942,0.71,177.13,177.11,42.99677837]
[1752865984158,102.20677837,177.12,177.02,0.03]
[1752865984331,11.79677837,177.06,177.02,0.03]
[1752865984691,11.79677837,177.07,177.03,31.2]
[1752865985045,0.71,177.06,177.03,31.2]
[1752865985368,0.71,177.06,177.03,42.99677837]
[1752865985549,5.64812199,177.05,177.03,31.2]
[1752865985744,6.35812199,177.05,177.03,31.2]
[1752865986770,0.71,177.04,177.02,31.23]
[1752865986966,0.71,177.03,177.02,31.23]
[1752865988560,6.35876009,177.03,177.02,31.23]
[1752865990979,26.62624884,177.07,177.02,31.23]
[1752865991183,10.47371917,177.06,177.02,43.02677837]
[1752865991472,6.357803,177.06,177.02,43.02677837]
[1752865991662,5.647803,177.06,177.02,43.02677837]
[1752865991862,4.82740697,177.05,177.03,31.2]
[1752865992057,0.71,177.04,177.03,31.2]
[1752865992270,6.35755271,177.07,177.03,42.99677837]
[1752865992580,0.71,177.06,177.03,31.2]
[1752865992759,5.64812199,177.05,177.02,0.03]
[1752865992963,6.35812199,177.05,177.02,0.03]
[1752865993164,0.71,177.04,177.02,31.23]
[1752865993387,5.64812199,177.05,177.02,43.02677837]
[1752865994380,5.647803,177.06,177.02,43.02677837]
[1752865994564,0.71,177.05,177.02,31.23]
[1752865994769,17.44458137,177.06,177.02,31.23]
[1752865995092,11.79677837,177.03,177.02,0.03]
[1752865995466,0.71,177.03,177.02,0.03]
[1752865996481,5.64844103,177.04,177.02,11.82677837]
[1752865996782,5.6481522,177.05,177.02,11.82677837]
[1752865997288,95.34786612,177.06,177.03,11.79677837]
[1752865997493,95.34786612,177.06,177.04,31.2]
[1752865997675,96.02786612,177.06,177.04,31.2]
[1752865998895,0.68,177.05,177.04,31.2]
[1752865999276,95.34786612,177.06,177.04,31.2]
[1752865999588,89.7,177.06,177.05,11.79677837]
[1752865999993,95.34662923,177.1,177.05,12.46677837]
[1752866000169,95.34662923,177.1,177.07,11.79677837]
[1752866000375,96.02662923,177.1,177.08,31.2]
[1752866001176,0.68,177.09,177.08,31.2]
[1752866001687,12.47677837,177.09,177.02,11.82677837]
[1752866001885,11.79677837,177.05,177.03,31.2]
[1752866002401,0.68,177.04,177.03,31.2]
[1752866002624,5.647803,177.06,177.03,42.99677837]
[1752866002901,95.34726207,177.08,177.03,31.2]
[1752866003105,95.34726207,177.08,177.05,11.79677837]
[1752866003277,89.7,177.08,177.06,42.99677837]
[1752866003477,5.64689756,177.09,177.07,11.79677837]
[1752866003675,5.64689756,177.09,177.08,31.2]
[1752866003902,5.64662113,177.1,177.08,42.99677837]
[1752866004606,95.3462198,177.11,177.09,11.79677837]
[1752866004786,95.3462198,177.11,177.1,31.18]
[1752866006209,95.3462198,177.11,177.1,42.97677837]
[1752866007074,89.7,177.11,177.1,42.97677837]
[1752866007294,5.64563966,177.13,177.1,42.97677837]
[1752866007618,0.68,177.14,177.11,11.79677837]
[1752866007836,96.414,177.15,177.12,31.18]
[1752866008038,96.414,177.15,177.13,11.79677837]
[1752866008334,102.05893599,177.15,177.14,31.18]
[1752866008505,102.73893599,177.15,177.14,31.18]
[1752866009094,89.9,177.15,177.14,42.97677837]
[1752866009499,89.9,177.15,177.14,31.18]
[1752866009819,96.22493367,177.15,177.14,31.18]
[1752866010220,108.02171204,177.15,177.1,11.79677837]
[1752866010423,11.79677837,177.12,177.02,15.66296238]
[1752866010600,12.47677837,177.11,177.06,11.79677837]
[1752866010795,0.68,177.1,177.07,31.18]
[1752866011015,0.68,177.1,177.07,42.97677837]
[1752866011221,5.64637638,177.11,177.09,11.79677837]
[1752866011521,5.64598549,177.12,177.09,42.97677837]
[1752866011815,0.68,177.11,177.09,31.18]
[1752866013032,89.7,177.13,177.1,11.79677837]
[1752866013204,5.64525234,177.14,177.12,11.79677837]
[1752866013524,5.64525234,177.14,177.13,31.18]
[1752866013699,6.32525234,177.14,177.13,31.18]
[1752866014220,5.64525234,177.14,177.13,31.18]
[1752866014637,6.32525234,177.14,177.13,31.18]
[1752866018942,5.64525234,177.14,177.13,42.97677837]
[1752866019223,6.32525234,177.14,177.13,31.18]
[1752866021128,32.23516156,177.14,177.12,31.16]
[1752866021298,0.68,177.13,177.12,31.16]
[1752866021715,0.68,177.13,177.09,11.79677837]
[1752866021930,0.68,177.12,177.1,31.16]
[1752866022113,19.75838319,177.14,177.1,42.95677837]
[1752866022304,0.68,177.13,177.1,42.95677837]
[1752866022910,5.64525234,177.14,177.11,11.79677837]
[1752866023231,6.32525234,177.14,177.12,31.16]
[1752866023433,5.64525234,177.14,177.12,31.16]
[1752866023727,0.2,177.15,177.13,12.46677837]
[1752866024040,95.54493367,177.15,177.14,42.95677837]
[1752866024197,89.9,177.15,177.14,42.95677837]
[1752866024624,0.2,177.15,177.14,42.95677837]
[1752866024899,0.2,177.15,177.14,43.62677837]
[1752866025457,0.2,177.15,177.14,49.27203071]
[1752866025726,0.2,177.15,177.14,66.05671468]
[1752866026519,0.2,177.15,177.14,92.05671468]
[1752866027896,0.2,177.15,177.14,44.11203071]
[1752866028098,0.2,177.15,177.14,75.25203071]
[1752866028608,0.2,177.15,177.14,69.60677837]
[1752866029032,0.2,177.15,177.14,75.25203071]
[1752866031706,0.2,177.15,177.14,44.11203071]
[1752866031923,0.2,177.15,177.14,69.58677837]
[1752866032335,0.2,177.15,177.14,26.0]
[1752866032537,0.2,177.15,177.12,0.69]
[1752866032839,0.2,177.15,177.14,11.79677837]
[1752866033539,0.2,177.15,177.13,31.12]
[1752866033712,0.2,177.15,159.96,13.74350745]
[1752866033713,0.69,177.14,177.1,11.79677837]
[1752866033910,0.69,177.14,177.07,11.82677837]
[1752866033911,11.79677837,177.13,177.07,11.82677837]
[1752866034108,0.69,177.12,177.08,42.91677837]
[1752866034533,0.69,177.12,177.09,11.79677837]
[1752866034714,0.69,177.12,177.1,31.12]
[1752866035440,0.69,177.14,177.1,42.91677837]
[1752866035627,5.64557104,177.13,177.1,31.12]
[1752866036030,0.69,177.12,177.1,31.12]
[1752866036430,0.69,177.11,177.1,31.12]
[1752866037018,6.33620857,177.11,177.1,31.12]
[1752866037522,5.64620857,177.11,177.1,31.12]
[1752866037849,14.31233418,177.15,177.1,42.91677837]
[1752866038045,0.69,177.14,177.1,42.91677837]
[1752866038225,6.33525234,177.14,177.1,42.91677837]
[1752866038424,0.69,177.13,177.1,42.91677837]
[1752866038732,5.64525234,177.14,177.1,42.91677837]
[1752866039045,89.7,177.13,177.1,42.91677837]
[1752866039235,95.34583515,177.13,177.1,42.91677837]
[1752866039436,96.03583515,177.13,177.1,42.91677837]
[1752866039616,95.34583515,177.13,177.1,42.91677837]
[1752866039822,0.69,177.12,177.1,31.12]
[1752866040237,0.69,177.12,177.1,31.15]
[1752866040541,0.69,177.11,177.1,31.15]
[1752866040917,95.34583515,177.13,177.1,31.15]
[1752866041117,95.34583515,177.13,177.1,42.94677837]
[1752866041348,96.03583515,177.13,177.1,42.94677837]
[1752866041523,0.69,177.12,177.1,31.15]
[1752866042026,0.69,177.11,177.1,31.15]
[1752866043044,95.34583515,177.13,177.1,31.15]
[1752866043250,0.69,177.12,177.1,31.15]
[1752866043746,6.33595174,177.12,177.1,31.15]
[1752866043946,89.7,177.13,177.11,7.23242639]
[1752866044148,0.2,177.15,177.12,38.33242639]
[1752866044353,0.2,177.15,177.14,7.23242639]
[1752866044554,0.2,177.15,177.1,0.03]
[1752866044555,13.07736006,177.15,177.1,0.03]
[1752866044722,7.23242639,177.12,177.11,31.1]
[1752866044927,7.23242639,177.12,177.1,0.03]
[1752866045136,7.92242639,177.11,177.1,0.03]
[1752866045752,6.33620857,177.11,177.1,0.03]
[1752866046024,13.56863496,177.11,177.1,0.03]
[1752866046850,1.5447,177.1,177.07,0.03]
[1752866047052,11.79636376,177.08,177.07,0.03]
[1752866047539,12.48636376,177.08,177.07,0.03]
[1752866047850,18.13352888,177.08,177.07,0.03]
[1752866048441,6.33716512,177.08,177.07,0.03]
[1752866048643,18.13352888,177.08,177.07,0.03]
[1752866049045,5.64716512,177.08,177.07,0.03]
[1752866049224,6.33716512,177.08,177.07,0.03]
[1752866049429,18.13352888,177.08,177.07,0.03]
[1752866050434,6.33716512,177.08,177.07,0.03]
[1752866052168,18.13352888,177.08,177.07,0.03]
[1752866052749,5.64716512,177.08,177.07,0.03]
[1752866054146,12.48636376,177.12,177.07,11.82636376]
[1752866054347,0.69,177.11,177.07,11.82636376]
[1752866054651,6.33652738,177.1,177.07,0.03]
[1752866055062,6.33652738,177.1,177.07,11.82636376]
[1752866055653,0.65,177.09,177.07,0.03]
[1752866056771,5.64706291,177.09,177.07,0.03]
[1752866058141,6.29706291,177.09,177.07,0.03]
[1752866058539,12.44636376,177.08,177.07,0.03]
[1752866058855,18.09352888,177.08,177.07,0.03]
[1752866060752,34.87821285,177.08,177.07,1e-08]
[1752866060961,18.43798397,177.07,177.06,1e-08]
[1752866061261,18.43798397,177.07,176.99,0.03]
[1752866061262,16.78468397,177.04,176.99,0.03]
[1752866061479,11.79636376,177.0,176.99,0.03]
[1752866061777,18.09426376,177.0,176.99,0.03]
[1752866061952,18.09426376,177.0,176.94,0.03]
[1752866061953,18.74426376,177.0,176.94,0.03]
[1752866062146,11.79636376,176.96,176.94,0.03]
[1752866062584,15.21028874,176.96,176.94,0.03]
[1752866062880,20.86128331,176.96,176.94,0.03]
[1752866063053,28.58104773,176.95,176.94,0.03]
[1752866063379,29.23104773,176.95,176.94,1e-08]
[1752866063951,49.23678397,176.93,176.92,1e-08]
[1752866064155,92.09314773,176.93,176.92,1e-08]
[1752866064350,80.94678397,176.93,176.92,1e-08]
[1752866064662,92.74314773,176.93,176.92,1e-08]
[1752866064871,98.39510047,176.93,176.92,1e-08]
[1752866066662,86.59873671,176.93,176.92,1e-08]
[1752866066975,12.75405274,176.93,176.92,1e-08]
[1752866067377,5.65195274,176.93,176.92,1e-08]
[1752866067880,12.44636376,176.95,176.92,1e-08]
[1752866068261,5.65179209,176.94,176.92,1e-08]
[1752866068467,6.30179209,176.94,176.92,1e-08]
[1752866068963,5.65179209,176.94,176.92,1e-08]
[1752866069282,28.76392498,176.96,176.92,1e-08]
[1752866069283,17.44760293,176.96,176.92,1e-08]
[1752866069463,5.65123917,176.96,176.92,12.51636377]
[1752866069869,6.30069506,176.97,176.93,11.79636376]
[1752866070066,6.30069506,176.97,176.94,11.79636376]
[1752866070067,5.65069506,176.97,176.94,11.79636376]
[1752866070364,5.65037489,176.98,176.95,11.79636376]
[1752866070571,5.65037489,176.98,176.96,11.79636376]
[1752866070967,5.65003672,176.99,176.96,11.79636376]
[1752866071293,5.65003672,176.99,176.95,11.79636376]
[1752866071584,6.30003672,176.99,176.95,11.79636376]
[1752866071958,6.30003672,176.99,176.93,0.72]
[1752866072270,11.79636376,176.97,176.92,11.79636377]
[1752866072456,0.65,176.96,176.92,11.79636377]
[1752866072877,11.79636376,176.97,176.92,1e-08]
[1752866073161,5.65107547,176.96,176.92,12.51636377]
[1752866073388,5.65107547,176.96,176.93,11.79636376]
[1752866073682,6.30107547,176.96,176.92,11.79636377]
[1752866074460,5.65035597,176.98,176.95,11.79636376]
[1752866074676,5.65035597,176.98,176.95,12.51636376]
[1752866074961,5.65003672,176.99,176.95,12.51636376]
[1752866075158,11.79636376,176.96,176.92,1e-08]
[1752866075357,11.79636376,176.94,176.92,1e-08]
[1752866075694,11.79636376,176.93,176.92,1e-08]
[1752866076031,12.44636376,176.93,176.92,1e-08]
[1752866076700,11.79636376,176.94,176.92,1e-08]
[1752866077073,31.04,176.97,176.92,12.51636377]
[1752866077254,5.65099457,176.96,176.93,12.51636376]
[1752866077791,11.79636376,176.99,176.94,11.79636376]
[1752866077965,11.79636376,176.99,176.94,12.51636376]
[1752866078293,118.5125095,177.0,176.94,12.51636376]
[1752866078594,102.14636376,176.99,176.94,12.51636376]
[1752866078789,102.14636376,176.99,176.94,11.79636376]
[1752866078790,11.79636376,176.98,176.94,11.79636376]
[1752866079092,5.65067525,176.97,176.94,11.79636376]
[1752866079264,5.65067525,176.97,176.93,11.79636376]
[1752866079584,6.30067525,176.97,176.93,11.79636376]
[1752866079789,11.79636376,176.95,176.92,1e-08]
[1752866079961,101.49636376,176.95,176.92,1e-08]
[1752866080163,102.14636376,176.95,176.92,1e-08]
[1752866081058,5.65163332,176.94,176.92,1e-08]
[1752866081467,95.35139807,176.95,176.92,11.79636377]
[1752866081870,89.7,176.95,176.93,11.79636376]
[1752866082073,95.3513292,176.95,176.93,11.79636376]
[1752866082274,89.7,176.95,176.93,12.51636376]
[1752866082786,89.7,176.95,176.94,11.79636376]
[1752866083085,5.65091143,176.97,176.94,11.79636376]
[1752866083769,95.35039679,176.98,176.95,11.79636376]
[1752866084279,95.35039679,176.98,176.92,1e-08]
[1752866084280,0.65,176.97,176.93,11.79636376]
[1752866084790,12.44636376,176.97,176.93,11.79636376]
[1752866084962,18.09732196,176.97,176.93,11.79636376]
[1752866085164,6.3009582,176.97,176.93,11.79636376]
[1752866085363,5.6509582,176.97,176.94,11.79636376]
[1752866085660,5.6509582,176.97,176.95,11.79636376]
[1752866085969,6.3509582,176.97,176.93,11.79636376]
[1752866086390,6.3509582,176.97,176.94,11.79636376]
[1752866086915,6.3509582,176.97,176.92,1e-08]
[1752866087080,6.3509582,176.97,176.94,11.79636376]
[1752866087510,95.35043785,176.98,176.92,1e-08]
[1752866087813,89.7,176.98,176.97,11.79636376]
[1752866088387,0.06,176.99,176.97,12.50636376]
[1752866088587,0.06,176.99,176.98,12.50636376]
[1752866089090,0.06,176.99,176.96,37.36089981]
[1752866089296,0.06,176.99,176.98,11.79636376]
[1752866089809,0.06,176.99,176.97,11.79636376]
[1752866090001,0.06,176.99,176.94,5.65152664]
[1752866090002,11.85636376,176.99,176.94,11.79636376]
[1752866090307,0.7,176.98,176.93,26.0]
[1752866090515,0.7,176.98,176.94,11.79636376]
[1752866090694,11.85636376,176.99,176.94,11.79636376]
[1752866091013,5.65131393,176.95,176.92,1e-08]
[1752866091213,11.79636376,176.93,176.92,1e-08]
[1752866091707,0.7,176.94,176.92,1e-08]
[1752866092211,17.44767769,176.95,176.92,1e-08]
[1752866092716,11.79636376,176.94,176.92,1e-08]
[1752866093212,5.65195274,176.93,176.92,1e-08]
[1752866095008,95.35195274,176.93,176.92,1e-08]
[1752866096298,89.7,176.93,176.92,12.50636377]
[1752866096610,89.7,176.93,176.92,43.48636377]
[1752866096810,0.06,176.99,176.96,27.5434]
[1752866097119,0.06,176.99,176.98,11.79636376]
[1752866097343,0.06,176.99,176.98,17.44671973]
[1752866097696,0.06,176.99,176.98,17.59671973]
[1752866098000,0.06,176.99,176.98,11.79636376]
[1752866098612,0.06,176.99,176.98,11.94636376]
[1752866099408,0.06,176.99,176.98,11.79636376]
[1752866099618,0.06,176.99,176.96,27.5434]
[1752866099803,0.06,176.99,176.98,11.79636376]
[1752866100594,0.06,176.99,176.98,11.94636376]
[1752866101023,0.06,177.03,177.01,26.0]
[1752866101251,0.06,177.03,177.02,42.75636376]
[1752866101454,0.06,177.03,177.02,42.84636376]
[1752866101836,0.06,177.03,177.02,42.75636376]
[1752866102037,0.06,177.03,177.02,60.19595565]
[1752866102236,0.06,177.07,177.05,26.0]
[1752866102440,0.06,177.1,177.06,59.54104773]
[1752866102643,0.06,177.1,177.09,11.79636376]
[1752866103166,0.06,177.1,177.09,46.05425772]
[1752866103365,0.06,177.1,177.09,56.94]
[1752866103537,0.06,177.1,177.09,68.73636376]
[1752866103739,0.06,177.1,177.09,68.76636376]
[1752866104235,0.06,177.1,177.09,68.73636376]
[1752866104456,0.06,177.1,177.09,68.76636376]
[1752866104736,0.06,177.1,177.09,68.73636376]
[1752866106440,0.06,177.1,177.09,74.38320999]
[1752866106640,0.06,177.1,177.09,74.41320999]
[1752866106865,0.06,177.1,177.09,68.76636376]
[1752866107030,0.06,177.1,177.09,68.73636376]
[1752866107236,0.06,177.1,177.09,26.0]
[1752866107448,0.06,177.1,177.09,42.71636376]
[1752866107854,0.06,177.1,177.09,42.74636376]
[1752866108256,0.06,177.1,177.09,48.39320999]
[1752866110857,0.06,177.1,177.09,36.59684623]
[1752866111168,0.06,177.1,177.09,48.39320999]
[1752866112193,0.06,177.11,177.09,77.53894234]
[1752866112404,0.06,177.11,177.1,49.59272752]
[1752866112550,0.06,177.11,177.1,49.62272752]
[1752866112752,0.06,177.14,177.13,42.78468397]
[1752866112979,0.06,177.14,177.13,73.68468397]
[1752866113279,0.76,177.14,177.1,26.0]
[1752866113465,0.76,177.14,177.13,11.79636376]
[1752866113794,0.06,177.14,177.13,30.9]
[1752866114079,0.76,177.14,177.13,30.9]
[1752866114971,6.40525234,177.14,177.13,30.9]
[1752866115873,6.40525234,177.14,177.1,11.79636376]
[1752866116207,11.79636376,177.11,177.06,11.79636376]
[1752866116513,6.35652738,177.1,177.07,30.88]
[1752866116808,0.71,177.09,177.08,30.88]
[1752866116990,5.64652738,177.1,177.08,30.88]
[1752866117321,0.71,177.11,177.08,30.88]
[1752866117530,0.71,177.11,177.09,11.79636376]
[1752866117682,0.71,177.11,177.1,30.88]
[1752866119090,6.35620857,177.11,177.1,30.88]
[1752866119298,18.15257233,177.11,177.1,30.88]
[1752866119481,18.15257233,177.11,177.04,26.0]
[1752866119677,18.15257233,177.11,177.05,30.86]
[1752866119678,11.79636376,177.07,177.05,30.86]
[1752866119906,12.50636376,177.06,177.03,30.86]
[1752866120090,1.6021,177.1,177.03,30.86]
[1752866120301,0.71,177.05,177.03,30.86]
[1752866120513,6.35769362,177.07,177.03,42.65636376]
[1752866120883,6.35769362,177.07,177.03,30.86]
[1752866121210,5.64769362,177.07,177.03,42.65636376]
[1752866121406,0.71,177.06,177.03,42.65636376]
[1752866122119,5.64782993,177.06,177.03,30.86]
[1752866122283,0.71,177.05,177.03,30.86]
[1752866122484,0.71,177.08,177.04,31.64844103]
[1752866122809,0.71,177.1,177.07,11.79636376]
[1752866123012,11.79636376,177.12,177.08,30.86]
[1752866123308,0.71,177.09,177.08,30.86]
[1752866123478,7.9043,177.14,177.08,30.86]
[1752866123684,0.71,177.12,177.08,30.86]
[1752866123886,0.71,177.11,177.08,30.86]
[1752866124090,7.9043,177.14,177.08,30.86]
[1752866124091,0.06,177.14,177.08,30.89]
[1752866124297,0.06,177.14,177.13,11.79636376]
[1752866124502,0.06,177.14,177.13,42.65636376]
[1752866126496,0.06,177.14,177.13,48.3019348]
[1752866129220,0.06,177.14,177.13,42.65636376]
[1752866129397,0.06,177.14,177.13,42.63636376]
[1752866129833,0.06,177.14,177.13,48.2819348]
[1752866130191,0.06,177.14,177.1,37.82636376]
[1752866130502,0.71,177.13,177.11,42.61636376]
[1752866130820,0.06,177.14,177.12,11.79636376]
[1752866131135,0.06,177.14,177.13,42.61636376]
[1752866131357,0.06,177.14,177.13,30.82]
[1752866131559,0.06,177.14,177.13,42.61636376]
[1752866132047,0.06,177.14,177.13,30.82]
[1752866132232,0.77,177.14,177.13,42.61636376]
[1752866132634,0.06,177.14,177.13,42.61636376]
[1752866132842,0.06,177.14,177.13,48.2919348]
[1752866133030,0.06,177.14,177.13,48.2619348]
[1752866133236,0.06,177.14,177.13,48.2919348]
[1752866134362,0.06,177.14,177.13,48.2619348]
[1752866135333,0.06,177.14,177.13,42.59636376]
[1752866135663,0.77,177.14,177.08,5.64693573]
[1752866135844,11.79636376,177.13,177.08,11.79636376]
[1752866136029,0.71,177.12,177.09,30.8]
[1752866136432,0.71,177.11,177.09,42.59636376]
[1752866136672,0.71,177.11,177.1,11.79636376]
[1752866136965,13.21961031,177.14,177.1,11.79636376]
[1752866136966,12.41785999,177.14,177.1,11.79636376]
[1752866137253,0.71,177.13,177.12,11.79636376]
[1752866137442,0.71,177.13,177.11,42.59636376]
[1752866137643,0.71,177.12,177.11,42.59636376]
[1752866137843,0.71,177.12,177.11,30.8]
[1752866138667,6.35620684,177.12,177.09,30.8]
[1752866138893,6.35620684,177.12,177.08,11.79636376]
[1752866138894,0.71,177.11,177.08,11.79636376]
[1752866139088,0.71,177.1,177.07,30.8]
[1752866139287,6.0626,177.14,177.07,30.8]
[1752866139288,6.0626,177.14,177.09,11.79636376]